fUSD/lending_fUSD_20250416
["ID","MTS","AMOUNT","RATE_DAILY","PERIOD"]
[358194040,1744827059109,-500.0,0.00055468,120]
[358194041,1744827059121,-500.0,0.00055468,120]
[358194042,1744827059133,-500.0,0.00055468,120]
[358194043,1744827059146,-500.0,0.00055468,120]
[358194044,1744827059156,-500.0,0.00055468,120]
[358194045,1744827059167,-500.0,0.00055468,120]
[358194046,1744827059180,-500.0,0.00055468,120]
[358194047,1744827059188,-500.0,0.00055468,120]
[358194048,1744827059197,-152.792015,0.00055468,120]
[358194049,1744827059207,-500.0,0.00055468,120]
[358194050,1744827059216,-500.0,0.00055468,120]
[358194051,1744827059225,-500.0,0.00055468,120]
[358194052,1744827059234,-500.0,0.00055468,120]
[358194053,1744827059243,-151.0,0.00055468,120]
[358194054,1744827059252,-550.33,0.00055468,120]
[358194055,1744827059261,-332.78,0.00055468,120]
[358194056,1744827059270,-151.0,0.00055468,120]
[358194057,1744827059279,-151.0,0.00055468,120]
[358194058,1744827059288,-152.978973,0.00055468,120]
[358194059,1744827059297,-500.0,0.00055468,120]
[358194060,1744827059306,-500.0,0.00055468,120]
[358194061,1744827059315,-151.0,0.00055468,120]
[358194062,1744827059324,-151.0,0.00055468,120]
[358194063,1744827059332,-500.0,0.00055468,120]
[358194064,1744827059341,-679.62,0.00055468,120]
[358194065,1744827059350,-151.0,0.00055468,120]
[358194066,1744827059359,-159.033309,0.00055468,120]
[358194067,1744827059367,-500.0,0.00055468,120]
[358194068,1744827059377,-91214.53518933,0.00055468,7]
[358194069,1744827059848,-268.61,0.00055468,7]
[358194070,1744827059871,-299.96498578,0.00055467,120]
[358194071,1744827059883,-200.03501422,0.00055467,120]
[358194072,1744827059892,-5285.59156826,0.00055468,7]
[358194073,1744827059908,-44791.68324241,0.00055468,7]
[358194074,1744827059921,-500.0,0.00055468,120]
[358194075,1744827059931,-763.98,0.00055468,120]
[358194076,1744827059940,-500.0,0.00055468,120]
[358194077,1744827059950,-500.0,0.00055468,120]
[358194078,1744827059960,-500.0,0.00055468,120]
[358194079,1744827059970,-1388.794015,0.00055468,120]
[358194080,1744827059979,-500.0,0.00055468,120]
[358194081,1744827059989,-1388.794015,0.00055468,120]
[358194082,1744827059999,-151.0,0.00055468,120]
[358194083,1744827060009,-255.233527,0.00055468,120]
[358194084,1744827060019,-1388.794015,0.00055468,120]
[358194085,1744827060028,-1388.794015,0.00055468,120]
[358194086,1744827060038,-500.0,0.00055468,120]
[358194087,1744827060048,-503.69,0.00055468,120]
[358194088,1744827060058,-517.71,0.00055468,120]
[358194089,1744827060069,-634.43644112,0.00055468,120]
[358194090,1744827060082,-500.0,0.00055468,120]
[358194091,1744827060091,-500.0,0.00055468,120]
[358194092,1744827060101,-500.0,0.00055468,120]
[358194093,1744827060111,-500.0,0.00055468,120]
[358194094,1744827060120,-165.100587,0.00055468,120]
[358194095,1744827060130,-165.100587,0.00055468,120]
[358194096,1744827060139,-2535.22,0.00055468,120]
[358194097,1744827060149,-500.0,0.00055468,120]
[358194098,1744827060159,-1010.39,0.00055468,120]
[358194099,1744827060174,-165.100587,0.00055468,120]
[358194100,1744827060184,-165.100587,0.00055468,120]
[358194101,1744827060194,-500.0,0.00055468,3]
[358194102,1744827060204,-500.0,0.00055468,118]
[358194103,1744827060214,-500.0,0.00055468,120]
[358194104,1744827060223,-659.31,0.00055468,120]
[358194105,1744827060233,-319.12,0.00055468,120]
[358194106,1744827060244,-765.25,0.00055468,120]
[358194107,1744827060253,-500.0,0.00055468,120]
[358194108,1744827060263,-500.0,0.00055468,120]
[358194109,1744827060272,-500.0,0.00055468,120]
[358194110,1744827060281,-151.0,0.00055468,120]
[358194111,1744827060290,-151.0,0.00055468,120]
[358194112,1744827060299,-508.14,0.00055468,120]
[358194113,1744827060308,-151.0,0.00055468,120]
[358194114,1744827060318,-245.22528,0.00055468,120]
[358194115,1744827060327,-500.0,0.00055468,120]
[358194116,1744827060336,-530.51172233,0.00055468,120]
[358194117,1744827060344,-500.0,0.00055468,120]
[358194118,1744827060353,-500.0,0.00055468,120]
[358194119,1744827060363,-500.0,0.00055468,120]
[358194120,1744827060372,-500.0,0.00055468,120]
[358194121,1744827060381,-521.41,0.00055468,120]
[358194122,1744827060391,-500.0,0.00055468,120]
[358194123,1744827060400,-185.132,0.00055468,120]
[358194124,1744827060409,-500.0,0.00055468,120]
[358194125,1744827060423,-500.0,0.00055468,120]
[358194126,1744827060433,-500.0,0.00055468,120]
[358194127,1744827060442,-526.00758262,0.00055468,120]
[358194128,1744827060451,-151.0,0.00055468,120]
[358194129,1744827060462,-151.0,0.00055468,120]
[358194130,1744827060471,-500.0,0.00055468,120]
[358194131,1744827060480,-500.0,0.00055468,120]
[358194132,1744827060489,-500.0,0.00055468,120]
[358194133,1744827060498,-500.0,0.00055468,120]
[358194134,1744827060507,-500.0,0.00055468,120]
[358194135,1744827060516,-500.0,0.00055468,120]
[358194136,1744827060525,-151.0,0.00055468,120]
[358194137,1744827060535,-151.0,0.00055468,120]
[358194138,1744827060544,-515.71141848,0.00055468,120]
[358194139,1744827060553,-987.72,0.00055468,120]
[358194140,1744827060694,-183.773614,0.00055468,120]
[358194141,1744827060703,-183.773614,0.00055468,120]
[358194142,1744827060713,-500.0,0.00055468,120]
[358194143,1744827060722,-183.773614,0.00055468,120]
[358194144,1744827060730,-183.773614,0.00055468,120]
[358194145,1744827060739,-500.0,0.00055468,120]
[358194146,1744827060749,-500.0,0.00055468,120]
[358194147,1744827060758,-500.0,0.00055468,120]
[358194148,1744827060767,-500.0,0.00055468,120]
[358194149,1744827060777,-500.0,0.00055468,120]
[358194150,1744827060786,-500.0,0.00055468,120]
[358194151,1744827060795,-500.0,0.00055468,120]
[358194152,1744827060804,-500.0,0.00055468,120]
[358194153,1744827060813,-500.0,0.00055468,120]
[358194154,1744827060823,-2262.76,0.00055468,120]
[358194155,1744827060833,-500.0,0.00055468,120]
[358194156,1744827060842,-500.0,0.00055468,120]
[358194157,1744827060854,-500.0,0.00055468,120]
[358194158,1744827060863,-500.0,0.00055468,120]
[358194159,1744827060873,-500.0,0.00055468,120]
[358194160,1744827060882,-464.16926183,0.00055468,120]
[358194161,1744827060892,-3251.57,0.00055468,120]
[358194162,1744827060901,-2323.52,0.00055468,120]
[358194163,1744827060910,-500.0,0.00055468,120]
[358194164,1744827060923,-1172.12,0.00055468,120]
[358194165,1744827060933,-534.58,0.00055468,120]
[358194166,1744827060944,-500.0,0.00055468,120]
[358194167,1744827060954,-500.0,0.00055468,120]
[358194168,1744827060963,-500.0,0.00055468,120]
[358194169,1744827060974,-293.53258499,0.00055468,120]
[358194170,1744827060984,-500.0,0.00055468,120]
[358194171,1744827060995,-500.0,0.00055468,120]
[358194172,1744827061005,-500.0,0.00055468,120]
[358194173,1744827061015,-1261.38,0.00055469,120]
[358194174,1744827061025,-500.0,0.00055469,120]
[358194175,1744827061035,-152.79,0.0005547,120]
[358194176,1744827061045,-504.53095867,0.00055473,15]
[358194177,1744827061055,-339.2353216,0.00055473,15]
[358194178,1744827061065,-159.67593157,0.00055473,15]
[358194179,1744827061076,-500.0,0.00055473,15]
[358194180,1744827061088,-500.0,0.00055473,2]
[358194181,1744827061101,-500.0,0.00055473,15]
[358194182,1744827061111,-2268.71,0.00055476,2]
[358194183,1744827061122,-500.0,0.00055476,120]
[358194184,1744827061133,-746.39,0.00055476,120]
[358194185,1744827061143,-1622.9,0.00055476,120]
[358194186,1744827061154,-943.13,0.00055476,120]
[358194187,1744827061164,-500.0,0.00055476,120]
[358194188,1744827061181,-500.0,0.00055476,120]
[358194189,1744827061191,-500.0,0.00055477,120]
[358194190,1744827061202,-500.0,0.00055477,120]
[358194191,1744827061213,-569.55800729,0.00055477,120]
[358194192,1744827061223,-500.0,0.00055477,120]
[358194193,1744827061233,-500.0,0.00055477,120]
[358194194,1744827061243,-500.0,0.00055477,120]
[358194195,1744827061253,-500.0,0.00055477,120]
[358194196,1744827061263,-500.0,0.00055477,120]
[358194197,1744827061272,-500.0,0.00055477,120]
[358194198,1744827061282,-500.0,0.00055477,120]
[358194199,1744827061290,-500.0,0.00055477,120]
[358194200,1744827061300,-500.0,0.00055477,120]
[358194201,1744827061310,-500.0,0.00055477,120]
[358194202,1744827061319,-500.0,0.00055477,120]
[358194203,1744827061329,-280.78984577,0.00055477,120]
[358194204,1744827061339,-500.0,0.00055477,120]
[358194205,1744827061349,-500.0,0.00055477,120]
[358194206,1744827061358,-500.0,0.00055477,120]
[358194207,1744827061368,-324.188518,0.00055477,120]
[358194208,1744827061378,-500.0,0.00055477,120]
[358194209,1744827061388,-500.0,0.00055477,120]
[358194210,1744827061397,-500.0,0.00055477,120]
[358194211,1744827061407,-500.0,0.00055477,120]
[358194212,1744827061422,-500.0,0.00055477,120]
[358194213,1744827061431,-500.0,0.00055477,120]
[358194214,1744827061442,-500.0,0.00055477,120]
[358194215,1744827061452,-500.0,0.00055477,120]
[358194216,1744827061464,-500.0,0.00055477,120]
[358194217,1744827061474,-500.0,0.00055477,120]
[358194218,1744827061483,-500.0,0.00055477,120]
[358194219,1744827061492,-973.25,0.00055477,120]
[358194220,1744827061503,-500.0,0.00055477,120]
[358194221,1744827061512,-500.0,0.00055477,120]
[358194222,1744827061521,-563.6994043,0.00055477,120]
[358194223,1744827061531,-500.0,0.00055477,120]
[358194224,1744827061541,-500.0,0.00055477,120]
[358194225,1744827061550,-500.0,0.00055477,120]
[358194226,1744827061560,-500.0,0.00055477,120]
[358194227,1744827061570,-500.0,0.00055477,120]
[358194228,1744827061579,-500.0,0.00055477,120]
[358194229,1744827061589,-500.0,0.00055477,120]
[358194230,1744827061599,-679.62,0.00055477,120]
[358194231,1744827061611,-500.0,0.00055477,120]
[358194232,1744827061621,-500.0,0.00055477,120]
[358194233,1744827061631,-141560.42,0.00055477,7]
[358194234,1744827061641,-500.0,0.00055477,120]
[358194235,1744827061650,-500.0,0.00055477,120]
[358194236,1744827061660,-763.98,0.00055477,120]
[358194237,1744827061674,-500.0,0.00055477,120]
[358194238,1744827061683,-500.0,0.00055477,120]
[358194239,1744827061693,-1388.794015,0.00055477,120]
[358194240,1744827061703,-1388.794015,0.00055477,120]
[358194241,1744827061713,-2268.71,0.00055477,2]
[358194242,1744827061723,-500.0,0.00055477,120]
[358194243,1744827061733,-500.0,0.00055477,120]
[358194244,1744827061743,-500.0,0.00055477,120]
[358194245,1744827061753,-165.100587,0.00055477,120]
[358194246,1744827061763,-500.0,0.00055477,120]
[358194247,1744827061772,-1010.39,0.00055477,120]
[358194248,1744827061782,-165.100587,0.00055477,120]
[358194249,1744827061792,-500.0,0.00055477,118]
[358194250,1744827061802,-500.0,0.00055477,120]
[358194251,1744827061811,-500.0,0.00055477,120]
[358194252,1744827061821,-500.0,0.00055477,120]
[358194253,1744827061831,-508.14,0.00055477,120]
[358194254,1744827061840,-500.0,0.00055477,120]
[358194255,1744827061850,-500.0,0.00055477,120]
[358194256,1744827061859,-500.0,0.00055477,120]
[358194257,1744827061869,-500.0,0.00055477,120]
[358194258,1744827061878,-500.0,0.00055477,120]
[358194259,1744827061888,-500.0,0.00055477,120]
[358194260,1744827061897,-500.0,0.00055477,120]
[358194261,1744827061908,-315.5144321,0.00055477,2]
[358194262,1744827061922,-500.0,0.00055477,120]
[358194263,1744827061931,-500.0,0.00055477,120]
[358194264,1744827061940,-500.0,0.00055477,120]
[358194265,1744827061949,-500.0,0.00055477,120]
[358194266,1744827061959,-500.0,0.00055477,120]
[358194267,1744827061968,-500.0,0.00055477,120]
[358194268,1744827061977,-500.0,0.00055477,120]
[358194269,1744827061987,-500.0,0.00055477,120]
[358194270,1744827061997,-500.0,0.00055477,120]
[358194271,1744827062007,-500.0,0.00055477,120]
[358194272,1744827062018,-500.0,0.00055477,120]
[358194273,1744827062029,-500.0,0.00055477,120]
[358194274,1744827062040,-667.3,0.00055477,120]
[358194275,1744827062051,-512.71783131,0.00055477,120]
[358194276,1744827062061,-500.0,0.00055477,120]
[358194277,1744827062071,-500.0,0.00055477,120]
[358194278,1744827062080,-746.39,0.00055477,120]
[358194279,1744827062090,-3251.57,0.00055477,120]
[358194280,1744827062100,-1622.9,0.00055477,120]
[358194281,1744827062110,-500.0,0.00055477,120]
[358194282,1744827062121,-500.0,0.00055477,120]
[358194283,1744827062131,-534.58,0.00055477,120]
[358194284,1744827062142,-500.0,0.00055477,120]
[358194285,1744827062151,-500.0,0.00055477,120]
[358194286,1744827062162,-500.0,0.00055477,120]
[358194287,1744827062178,-943.13,0.00055477,120]
[358194288,1744827062187,-500.0,0.00055477,120]
[358194289,1744827062197,-452.63729178,0.00055477,120]
[358194290,1744827062207,-500.0,0.00055477,120]
[358194291,1744827062216,-5836.1904246,0.00055477,2]
[358194292,1744827062226,-500.0,0.00055477,120]
[358194293,1744827062235,-500.0,0.00055477,120]
[358194294,1744827062244,-500.0,0.00055477,120]
[358194295,1744827062253,-500.0,0.00055477,120]
[358194296,1744827062262,-444.16103678,0.00055478,7]
[358194297,1744827062271,-1899.29,0.00055478,120]
[358194298,1744827062283,-1820.16,0.00055478,120]
[358194299,1744827062299,-500.0,0.00055478,120]
[358194300,1744827062308,-500.0,0.00055478,120]
[358194301,1744827062317,-500.0,0.00055478,120]
[358194302,1744827062326,-500.0,0.00055478,120]
[358194303,1744827062335,-1002.91,0.00055478,120]
[358194304,1744827062343,-501.44851943,0.00055478,120]
[358194305,1744827062352,-500.0,0.00055478,120]
[358194306,1744827062361,-302.1341821,0.00055478,120]
[358194307,1744827062370,-500.0,0.00055478,120]
[358194308,1744827062379,-1019.99,0.00055478,120]
[358194309,1744827062388,-502.73,0.00055478,8]
[358194310,1744827062396,-1603.81,0.00055478,120]
[358194311,1744827062407,-758.92,0.00055478,120]
[358194312,1744827062421,-500.0,0.00055478,120]
[358194313,1744827062430,-500.0,0.00055478,120]
[358194314,1744827062440,-743.87,0.00055478,120]
[358194315,1744827062449,-500.0,0.00055478,120]
[358194316,1744827062463,-500.0,0.00055478,120]
[358194317,1744827062472,-577.07,0.00055478,120]
[358194318,1744827062482,-500.0,0.00055478,120]
[358194319,1744827062491,-293.32225081,0.00055478,120]
[358194320,1744827062500,-500.0,0.00055478,120]
[358194321,1744827062510,-500.0,0.00055478,120]
[358194322,1744827062519,-612.54,0.00055478,120]
[358194323,1744827062528,-365.19965853,0.00055478,120]
[358194324,1744827062539,-196.65085964,0.00055478,120]
[358194325,1744827062549,-500.0,0.00055478,120]
[358194326,1744827062558,-500.0,0.00055478,120]
[358194327,1744827062567,-500.0,0.00055478,120]
[358194328,1744827062576,-500.0,0.00055478,120]
[358194329,1744827062585,-500.0,0.00055478,120]
[358194330,1744827062595,-500.0,0.00055478,120]
[358194331,1744827062604,-500.0,0.00055478,30]
[358194332,1744827062613,-500.0,0.00055478,120]
[358194333,1744827062623,-500.0,0.00055478,120]
[358194334,1744827062632,-500.0,0.00055478,120]
[358194335,1744827062641,-500.0,0.00055478,120]
[358194336,1744827062651,-500.0,0.00055478,120]
[358194337,1744827062660,-500.0,0.00055478,120]
[358194338,1744827062675,-151.0,0.00055478,120]
[358194339,1744827062684,-500.0,0.00055478,120]
[358194340,1744827062694,-500.0,0.00055478,120]
[358194341,1744827062704,-500.0,0.00055478,120]
[358194342,1744827062713,-500.0,0.00055478,120]
[358194343,1744827062723,-151.0,0.00055478,120]
[358194344,1744827062732,-500.0,0.00055478,120]
[358194345,1744827062742,-500.0,0.00055478,120]
[358194346,1744827062752,-500.0,0.00055478,120]
[358194347,1744827062761,-500.0,0.00055478,120]
[358194348,1744827062770,-48.64900272,0.00055478,120]
[358194349,1744827062786,-451.35099728,0.00055478,120]
[358194350,1744827062795,-500.0,0.00055478,120]
[358194351,1744827062804,-500.0,0.00055478,120]
[358194352,1744827062813,-500.0,0.00055478,120]
[358194353,1744827062823,-500.0,0.00055478,120]
[358194354,1744827062832,-500.0,0.00055478,120]
[358194355,1744827062842,-500.0,0.00055478,120]
[358194356,1744827062851,-28.48487435,0.00055478,120]
[358194357,1744827062951,-151.0,0.00055053,120]
[358194358,1744827062961,-500.0,0.00055468,120]
[358194359,1744827062971,-500.0,0.00055477,120]
[358194360,1744827062981,-457.76021215,0.00055478,120]
[358194361,1744827062992,-13.7549135,0.00055478,120]
[358194362,1744827063002,-476.95212457,0.00055478,120]
[358194363,1744827063012,-255.80001,0.00055478,120]
[358194364,1744827063022,-293.64995193,0.00055478,120]
[358194365,1744827063034,-206.35004807,0.00055478,120]
[358194366,1744827063044,-500.0,0.00055478,120]
[358194367,1744827063054,-500.0,0.00055478,120]
[358194368,1744827063064,-500.0,0.00055478,120]
[358194369,1744827063074,-500.0,0.00055478,120]
[358194370,1744827063084,-500.0,0.00055478,120]
[358194371,1744827063095,-500.0,0.00055478,120]
[358194372,1744827063105,-193.02798056,0.00055478,120]
[358194373,1744827063117,-306.97201944,0.00055478,120]
[358194374,1744827063128,-500.0,0.00055478,120]
[358194375,1744827063138,-973.25,0.00055478,120]
[358194376,1744827063148,-973.25,0.00055478,120]
[358194377,1744827063158,-500.0,0.00055478,120]
[358194378,1744827063173,-500.0,0.00055478,120]
[358194379,1744827063184,-500.0,0.00055478,120]
[358194380,1744827063194,-500.0,0.00055478,120]
[358194381,1744827063204,-151.0,0.00055478,120]
[358194382,1744827063214,-151.0,0.00055478,120]
[358194383,1744827063224,-550.33,0.00055478,120]
[358194384,1744827063235,-151.0,0.00055478,120]
[358194385,1744827063245,-266.008727,0.00055478,120]
[358194386,1744827063256,-500.0,0.00055478,120]
[358194387,1744827063266,-500.0,0.00055478,120]
[358194388,1744827063276,-500.0,0.00055478,120]
[358194389,1744827063287,-500.0,0.00055478,120]
[358194390,1744827063298,-151.0,0.00055478,120]
[358194391,1744827063308,-500.0,0.00055478,120]
[358194392,1744827063319,-500.0,0.00055478,120]
[358194393,1744827063329,-679.62,0.00055478,120]
[358194394,1744827063340,-500.0,0.00055478,120]
[358194395,1744827063350,-500.0,0.00055478,120]
[358194396,1744827063360,-33337.05034996,0.00055478,7]
[358194397,1744827063373,-833.0,0.00055478,7]
[358194398,1744827063389,-107390.36965004,0.00055478,7]
[358194399,1744827063399,-500.0,0.00055478,120]
[358194400,1744827063410,-500.0,0.00055478,120]
[358194401,1744827063425,-500.0,0.00055478,120]
[358194402,1744827063436,-500.0,0.00055478,120]
[358194403,1744827063445,-763.98,0.00055478,120]
[358194404,1744827063456,-500.0,0.00055478,120]
[358194405,1744827063468,-500.0,0.00055478,120]
[358194406,1744827063477,-500.0,0.00055478,120]
[358194407,1744827063488,-1388.794015,0.00055478,120]
[358194408,1744827063498,-1388.794015,0.00055478,120]
[358194409,1744827063508,-500.0,0.00055478,120]
[358194410,1744827063519,-517.71,0.00055478,120]
[358194411,1744827063530,-500.0,0.00055478,120]
[358194412,1744827063540,-500.0,0.00055478,120]
[358194413,1744827063551,-177.30603502,0.00055478,120]
[358194414,1744827063562,-500.0,0.00055478,120]
[358194415,1744827063571,-178.8563874,0.00055478,120]
[358194416,1744827063581,-500.0,0.00055478,120]
[358194417,1744827063591,-5480.77,0.00055478,120]
[358194418,1744827063600,-500.0,0.00055478,120]
[358194419,1744827063609,-2535.22,0.00055478,120]
[358194420,1744827063619,-165.100587,0.00055478,120]
[358194421,1744827063628,-500.0,0.00055478,120]
[358194422,1744827063638,-1010.39,0.00055478,120]
[358194423,1744827063648,-165.100587,0.00055478,120]
[358194424,1744827063658,-500.0,0.00055478,3]
[358194425,1744827063668,-500.0,0.00055478,118]
[358194426,1744827063679,-500.0,0.00055478,120]
[358194427,1744827063689,-659.31,0.00055478,120]
[358194428,1744827063700,-500.0,0.00055478,120]
[358194429,1744827063711,-783.99,0.00055478,120]
[358194430,1744827063720,-765.25,0.00055478,120]
[358194431,1744827063730,-500.0,0.00055478,120]
[358194432,1744827063741,-500.0,0.00055478,120]
[358194433,1744827063752,-500.0,0.00055478,120]
[358194434,1744827063762,-151.0,0.00055478,120]
[358194435,1744827063771,-508.14,0.00055478,120]
[358194436,1744827063780,-500.0,0.00055478,120]
[358194437,1744827063790,-500.0,0.00055478,120]
[358194438,1744827063801,-500.0,0.00055478,120]
[358194439,1744827063811,-274.44092661,0.00055478,120]
[358194440,1744827063822,-500.0,0.00055478,120]
[358194441,1744827063832,-500.0,0.00055478,120]
[358194442,1744827063851,-500.0,0.00055478,120]
[358194443,1744827063862,-500.0,0.00055478,120]
[358194444,1744827063872,-500.0,0.00055478,120]
[358194445,1744827063883,-500.0,0.00055478,120]
[358194446,1744827063893,-500.0,0.00055478,120]
[358194447,1744827064046,-521.41,0.00055478,120]
[358194448,1744827064059,-500.0,0.00055478,120]
[358194449,1744827064069,-500.0,0.00055478,120]
[358194450,1744827064082,-500.0,0.00055478,120]
[358194451,1744827064093,-500.0,0.00055478,120]
[358194452,1744827064105,-306.84,0.00055478,120]
[358194453,1744827064118,-500.0,0.00055478,120]
[358194454,1744827064129,-500.0,0.00055478,120]
[358194455,1744827064139,-500.0,0.00055478,120]
[358194456,1744827064150,-151.0,0.00055478,120]
[358194457,1744827064160,-151.0,0.00055478,120]
[358194458,1744827064176,-500.0,0.00055478,120]
[358194459,1744827064186,-500.0,0.00055478,120]
[358194460,1744827064196,-500.0,0.00055478,120]
[358194461,1744827064205,-500.0,0.00055478,120]
[358194462,1744827064215,-500.0,0.00055478,120]
[358194463,1744827064225,-500.0,0.00055478,120]
[358194464,1744827064235,-500.0,0.00055478,120]
[358194465,1744827064246,-151.0,0.00055478,120]
[358194466,1744827064256,-151.0,0.00055478,120]
[358194467,1744827064265,-987.72,0.00055478,120]
[358194468,1744827064276,-500.0,0.00055478,120]
[358194469,1744827064285,-183.773614,0.00055478,120]
[358194470,1744827064295,-183.773614,0.00055478,120]
[358194471,1744827064305,-500.0,0.00055478,120]
[358194472,1744827064315,-183.773614,0.00055478,120]
[358194473,1744827064325,-183.773614,0.00055478,120]
[358194474,1744827064335,-500.0,0.00055478,120]
[358194475,1744827064344,-500.0,0.00055478,120]
[358194476,1744827064355,-500.0,0.00055478,120]
[358194477,1744827064365,-500.0,0.00055478,120]
[358194478,1744827064376,-500.0,0.00055478,120]
[358194479,1744827064386,-500.0,0.00055478,120]
[358194480,1744827064397,-500.0,0.00055478,120]
[358194481,1744827064409,-500.0,0.00055478,120]
[358194482,1744827064424,-500.0,0.00055478,120]
[358194483,1744827064434,-500.0,0.00055478,120]
[358194484,1744827064445,-500.0,0.00055478,120]
[358194485,1744827064454,-500.0,0.00055478,120]
[358194486,1744827064466,-2262.76,0.00055478,120]
[358194487,1744827064475,-500.0,0.00055478,120]
[358194488,1744827064485,-500.0,0.00055478,120]
[358194489,1744827064495,-500.0,0.00055478,120]
[358194490,1744827064505,-328.19759242,0.00055478,120]
[358194491,1744827064515,-667.3,0.00055478,120]
[358194492,1744827064525,-500.0,0.00055478,120]
[358194493,1744827064536,-500.0,0.00055478,120]
[358194494,1744827064546,-500.0,0.00055478,120]
[358194495,1744827064555,-3251.57,0.00055478,120]
[358194496,1744827064564,-2323.52,0.00055478,120]
[358194497,1744827064574,-500.0,0.00055478,120]
[358194498,1744827064583,-500.0,0.00055478,120]
[358194499,1744827064592,-1172.12,0.00055478,120]
[358194500,1744827064601,-500.0,0.00055478,120]
[358194501,1744827064610,-534.58,0.00055478,120]
[358194502,1744827064619,-500.0,0.00055478,120]
[358194503,1744827064628,-500.0,0.00055478,120]
[358194504,1744827064637,-500.0,0.00055478,120]
[358194505,1744827064646,-500.0,0.00055478,120]
[358194506,1744827064655,-500.0,0.00055478,120]
[358194507,1744827064664,-500.0,0.00055478,120]
[358194508,1744827064679,-500.0,0.00055478,120]
[358194509,1744827064689,-500.0,0.00055478,120]
[358194510,1744827064698,-500.0,0.00055478,120]
[358194511,1744827064707,-3430.0,0.00055478,25]
[358194512,1744827064716,-500.0,0.00055479,120]
[358194513,1744827064725,-7217.78,0.00055479,120]
[358194514,1744827064734,-1261.38,0.00055479,120]
[358194515,1744827064743,-500.0,0.00055479,120]
[358194516,1744827064753,-758.92,0.00055479,120]
[358194517,1744827064762,-500.0,0.00055479,120]
[358194518,1744827064772,-500.0,0.00055479,120]
[358194519,1744827064782,-151.0,0.00055479,120]
[358194520,1744827064792,-151.0,0.00055479,120]
[358194521,1744827064801,-151.0,0.00055479,120]
[358194522,1744827064812,-151.0,0.00055479,120]
[358194523,1744827064822,-973.25,0.00055479,120]
[358194524,1744827064831,-500.0,0.00055479,120]
[358194525,1744827064841,-500.0,0.00055479,120]
[358194526,1744827064851,-500.0,0.00055479,120]
[358194527,1744827064860,-2268.71,0.00055479,2]
[358194528,1744827064869,-517.71,0.00055479,120]
[358194529,1744827064879,-500.0,0.00055479,120]
[358194530,1744827064888,-500.0,0.00055479,120]
[358194531,1744827064897,-2535.22,0.00055479,120]
[358194532,1744827064907,-500.0,0.00055479,3]
[358194533,1744827064922,-659.31,0.00055479,120]
[358194534,1744827064932,-151.0,0.00055479,3]
[358194535,1744827064941,-765.25,0.00055479,120]
[358194536,1744827064951,-151.0,0.00055479,120]
[358194537,1744827064961,-207.4,0.00055479,3]
[358194538,1744827064971,-215.0738,0.00055479,3]
[358194539,1744827064980,-223.0315306,0.00055479,3]